bitfinex-derivatives/quotes_SOLF0:USTF0_20250110
["timestamp","ask_amount","ask_price","bid_price","bid_amount"]
[1736523611322,1.5445,187.18,187.03,32.34547384]
[1736523611522,1.5445,187.18,187.06,32.34547384]
[1736523612236,1.5445,187.18,187.03,32.34547384]
[1736523612424,33.21189222,187.17,187.0,32.34547384]
[1736523612622,0.86641838,187.16,187.0,32.34547384]
[1736523612822,32.34547384,187.11,186.98,29.54586524]
[1736523613134,1.5702,187.1,186.98,29.54586524]
[1736523613323,1.5702,187.1,186.99,2.6745]
[1736523613719,2.6734,187.08,187.01,2.6743]
[1736523613921,32.34547384,187.17,187.0,32.34547384]
[1736523614123,0.86609701,187.16,187.0,32.34547384]
[1736523614536,2.6731,187.1,187.0,32.34547384]
[1736523615038,2.6732,187.09,187.03,2.674]
[1736523615229,2.6732,187.09,187.0,32.34547384]
[1736523615531,1.5746,187.17,187.03,32.34547384]
[1736523615726,0.86644922,187.16,187.03,32.34547384]
[1736523616039,2.673,187.11,187.04,2.6738]
[1736523616637,1.5746,187.17,187.04,2.6738]
[1736523616938,2.673,187.1,187.04,2.6738]
[1736523617824,1.5746,187.17,187.04,2.6738]
[1736523618027,0.86547599,187.16,187.04,2.6738]
[1736523618535,0.86547599,187.16,186.97,32.34547384]
[1736523618536,32.34547384,187.11,186.97,32.34547384]
[1736523618736,8.36367599,187.1,186.95,0.33587]
[1736523618929,32.34547384,187.08,186.95,0.33587]
[1736523619130,3.1361,187.07,186.95,0.33587]
[1736523619330,2.6746,186.99,186.95,0.33587]
[1736523619524,32.34547384,187.05,186.95,0.33587]
[1736523619732,0.8644017,187.04,186.95,0.33587]
[1736523619934,2.675,186.96,186.95,0.33587]
[1736523620135,5.94,187.01,186.95,0.33587]
[1736523620434,5.94,187.01,186.87,32.34547384]
[1736523620732,2.37619021,187.0,186.9,32.34547384]
[1736523620933,5.94,187.01,186.9,32.34547384]
[1736523621329,0.86378883,187.0,186.87,32.34547384]
[1736523621528,2.6753,186.95,186.89,2.6759]
[1736523621729,5.94,187.01,186.9,32.34547384]
[1736523622764,0.86400844,187.0,186.84,32.34547384]
[1736523623132,2.6755,186.93,186.87,2.6761]
[1736523623336,0.86408815,186.99,186.84,32.34547384]
[1736523623734,2.6755,186.93,186.87,2.6762]
[1736523624033,5.94,187.01,186.87,2.6762]
[1736523624337,2.6756,186.93,186.87,2.6762]
[1736523624532,1.615,186.97,186.87,2.6762]
[1736523624842,1.615,186.97,186.84,32.34547384]
[1736523625037,32.34547384,187.05,186.9,32.34547384]
[1736523625241,0.86410522,187.04,186.93,32.34547384]
[1736523625428,7.555,187.05,186.96,32.34547384]
[1736523625637,1.615,187.05,186.99,2.6746]
[1736523625837,1.615,187.05,186.96,32.34547384]
[1736523626135,9.1724,187.11,186.96,32.34547384]
[1736523626330,2.37825507,187.1,186.96,32.34547384]
[1736523626537,0.86435507,187.09,186.96,32.34547384]
[1736523626736,1.5139,187.1,186.99,32.34547384]
[1736523626943,1.5139,187.1,187.02,32.34547384]
[1736523627132,2.6728,187.12,187.05,2.6737]
[1736523627327,10.1789044,187.16,187.05,2.6737]
[1736523627537,0.86461289,187.15,187.05,2.6737]
[1736523627741,2.6729,187.11,187.05,2.6737]
[1736523628334,2.6732,187.09,187.02,32.34547384]
[1736523628531,10.1789044,187.16,187.02,32.34547384]
[1736523628732,0.86517682,187.15,187.03,2.674]
[1736523628931,2.6732,187.09,187.02,32.34547384]
[1736523630433,4.2389044,187.16,187.05,32.34547384]
[1736523630639,0.86497946,187.15,187.05,32.34547384]
[1736523631035,4.2389044,187.16,187.05,32.34547384]
[1736523631347,0.86516667,187.15,187.05,32.34547384]
[1736523631836,3.1703,187.16,187.05,32.34547384]
[1736523632040,0.86525255,187.15,187.05,32.34547384]
[1736523632446,2.6726,187.13,187.08,2.6732]
[1736523632636,5.94,187.22,187.08,32.34547384]
[1736523632936,0.86544096,187.21,187.08,32.34547384]
[1736523633337,0.86544096,187.2,187.14,32.34547384]
[1736523633534,144.5676798,187.32,187.17,32.34547384]
[1736523633733,144.5676798,187.32,187.2,32.34547384]
[1736523634037,0.86588916,187.3,187.2,32.34547384]
[1736523634239,2.6701,187.3,187.23,35.01657384]
[1736523634841,93.16338554,187.34,187.23,32.34547384]
[1736523635143,0.86580693,187.33,187.2,32.34547384]
[1736523635941,32.34547384,187.32,187.17,32.34547384]
[1736523636247,32.34547384,187.29,187.14,32.34547384]
[1736523636543,2.6718,187.19,187.12,2.6727]
[1736523636947,5.94,187.25,187.14,32.34547384]
[1736523637148,0.86611379,187.24,187.11,32.34547384]
[1736523637346,8.31711379,187.24,187.11,32.34547384]
[1736523637541,2.6722,187.16,187.11,32.34547384]
[1736523637744,35.59797384,187.23,187.08,32.34547384]
[1736523637937,32.34547384,187.2,187.05,32.34547384]
[1736523638251,3.2525,187.23,187.02,32.34547384]
[1736523638252,32.34547384,187.17,187.02,32.34547384]
[1736523638548,6.80591122,187.16,187.02,32.34547384]
[1736523638740,0.86591122,187.15,187.02,32.34547384]
[1736523638938,1.5086,187.15,187.02,32.34547384]
[1736523639141,0.86563129,187.14,187.02,32.34547384]
[1736523639752,2.6733,187.08,187.02,35.01957384]
[1736523640044,1.5086,187.15,187.02,32.34547384]
[1736523640248,33.21156107,187.14,187.0,83.44]
[1736523640447,0.86608723,187.13,186.99,32.34547384]
[1736523640638,1.5086,187.15,186.99,32.34547384]
[1736523640844,2.673,187.1,187.04,2.6738]
[1736523641040,1.5086,187.15,186.94,5.94]
[1736523641041,1.5086,187.15,187.02,32.34547384]
[1736523641241,0.86628948,187.14,187.02,32.34547384]
[1736523641438,1.5086,187.15,187.02,32.34547384]
[1736523642048,5.94,187.18,187.05,32.34547384]
[1736523642449,1.5497,187.22,187.05,32.34547384]
[1736523642450,5.94,187.2,187.05,32.34547384]
[1736523642749,2.672,187.17,187.08,32.34547384]
[1736523642944,5.94,187.2,187.08,32.34547384]
[1736523643139,2.672,187.18,187.12,2.6726]
[1736523643343,5.94,187.2,187.08,32.34547384]
[1736523643542,5.94,187.2,187.02,38.28547384]
[1736523643543,5.94,187.2,187.05,32.34547384]
[1736523643847,0.86579077,187.19,187.02,32.34547384]
[1736523644047,2.38279077,187.19,187.02,32.34547384]
[1736523644249,2.38279077,187.19,187.04,2.6738]
[1736523644250,2.6729,187.11,187.04,2.6738]
[1736523644445,1.517,187.19,187.04,2.6738]
[1736523644752,0.86606006,187.18,187.04,2.6738]
[1736523645151,32.34547384,187.17,187.04,2.6738]
[1736523645351,0.86606006,187.16,187.02,32.34547384]
[1736523645651,2.6729,187.11,187.02,32.34547384]
[1736523645854,2.6729,187.11,187.06,2.6736]
[1736523646047,2.6727,187.12,187.02,32.34547384]
[1736523646251,180.7095997,187.34,187.04,2.6737]
[1736523646453,0.86635532,187.22,187.13,32.34547384]
[1736523646651,5.94,187.26,187.13,32.34547384]
[1736523646850,5.94,187.29,187.18,2.6718]
[1736523647145,0.86600442,187.28,187.16,32.34547384]
[1736523647347,2.671,187.25,187.16,32.34547384]
[1736523647542,5.94,187.29,187.16,32.34547384]
[1736523647543,5.94,187.29,187.19,2.6716]
[1736523647750,2.671,187.25,187.16,32.34547384]
[1736523648053,3.1896,187.3,187.19,32.34547384]
[1736523648456,2.6706,187.28,187.19,32.34547384]
[1736523648652,3.1896,187.3,187.19,32.34547384]
[1736523649055,3.1896,187.3,187.13,5.94]
[1736523649056,3.1896,187.3,187.16,32.34547384]
[1736523649255,0.86545259,187.29,187.16,32.34547384]
[1736523649455,38.28547384,187.34,187.19,32.34547384]
[1736523649660,2.6706,187.28,187.19,32.34547384]
[1736523649858,5.94,187.34,187.21,2.6714]
[1736523650050,2.671,187.25,187.19,32.34547384]
[1736523650268,5.94,187.32,187.19,32.34547384]
[1736523650447,5.94,187.32,187.22,2.6712]
[1736523650855,0.86575076,187.31,187.19,32.34547384]
[1736523651053,93.77138554,187.49,187.29,32.34547384]
[1736523651253,3.2803,187.47,187.33,32.34547384]
[1736523651555,0.8654011,187.46,187.39,32.34547384]
[1736523651799,2.6679,187.46,187.39,32.34547384]
[1736523652008,88.43628554,187.49,187.43,32.34547384]
[1736523652272,88.43628554,187.49,187.46,32.34547384]
[1736523652554,144.5676798,187.51,187.49,2.6674]
[1736523652768,143.40095584,187.51,187.5,32.34547384]
[1736523653161,4.9161,187.63,187.5,32.34547384]
[1736523653362,0.8642581,187.62,187.5,32.34547384]
[1736523654058,87.85897594,187.74,187.58,32.34547384]
[1736523654257,0.86401882,187.73,187.58,32.34547384]
[1736523654461,2.6651,187.66,187.61,32.34547384]
[1736523654864,32.34547384,187.77,187.61,32.34547384]
[1736523655264,0.86380854,187.76,187.61,32.34547384]
[1736523655567,0.86380854,187.76,187.64,32.34547384]
[1736523655758,0.86369519,187.75,187.64,32.34547384]
[1736523656177,0.86369519,187.78,187.67,32.34547384]
[1736523656558,0.86369519,187.77,187.67,32.34547384]
[1736523656778,0.86368787,187.76,187.65,32.34547384]
[1736523657075,1.5578,187.81,187.7,32.34547384]
[1736523657285,2.6634,187.78,187.7,32.34547384]
[1736523657472,5.92,187.91,187.65,32.34547384]
[1736523657473,5.92,187.95,187.76,32.34547384]
[1736523657764,3.52439205,187.94,187.84,32.34547384]
[1736523657968,32.34547384,188.08,187.88,32.34547384]
[1736523658168,1.5936,188.09,187.88,38.48547384]
[1736523658359,2.6614,187.92,187.83,32.34547384]
[1736523658564,32.34547384,188.03,187.83,32.34547384]
[1736523658775,0.86245804,188.02,187.89,32.34547384]
[1736523658972,32.34547384,188.04,187.86,32.34547384]
[1736523659163,1.6433,188.01,187.86,32.34547384]
[1736523659378,2.6613,187.93,187.86,32.34547384]
[1736523659566,6.46,187.99,187.83,32.34547384]
[1736523659961,32.33,188.26,187.86,32.34547384]
[1736523660275,32.34547384,188.07,187.87,32.34547384]
[1736523660472,1.5777,188.06,187.87,32.34547384]
[1736523660671,3.1252,188.06,187.91,32.34547384]
[1736523660895,3.1252,188.06,187.95,32.34547384]
[1736523661188,32.34547384,188.19,188.03,32.34547384]
[1736523661372,32.34547384,188.23,188.03,32.34547384]
[1736523661669,0.86174826,188.22,188.07,32.34547384]
[1736523661872,1.06241699,188.25,188.11,32.34547384]
[1736523662074,6.5,188.38,188.15,32.34547384]
[1736523662276,1.92281284,188.37,188.23,32.34547384]
[1736523662478,1.92281284,188.37,188.23,32.02201134]
[1736523662686,2.6555,188.34,188.23,34.67891134]
[1736523662878,1.06174019,188.37,188.23,32.02201134]
[1736523663267,1.06174019,188.37,188.28,32.02201134]
[1736523664376,1.06174019,188.37,188.28,34.67811134]
[1736523664685,1.06174019,188.37,188.28,32.02201134]
[1736523664875,3.71674019,188.37,188.28,32.02201134]
[1736523665186,1.06174019,188.37,188.36,32.02201134]
[1736523665583,1.06174019,188.37,188.32,32.02201134]
[1736523665787,1.06174019,188.37,188.18,89.10515495]
[1736523665972,2.6553,188.35,188.25,2.6566]
[1736523666180,32.02201134,188.36,188.19,32.02201134]
[1736523666381,7.14,188.35,188.19,32.02201134]
[1736523666877,32.02201134,188.32,188.18,5.96515495]
[1736523667083,2.6569,188.24,188.18,5.96515495]
[1736523667295,2.6569,188.24,188.13,2.6583]
[1736523667480,32.02201134,188.28,188.06,90.24]
[1736523667784,2.656,188.3,188.19,32.02201134]
[1736523668080,2.6562,188.29,188.19,32.02201134]
[1736523668278,32.02201134,188.32,188.15,32.02201134]
[1736523668784,4.7152,188.34,188.15,32.02201134]
[1736523668988,11.9352,188.34,188.15,32.02201134]
[1736523669581,32.02201134,188.3,188.15,32.02201134]
[1736523669787,32.02201134,188.27,188.12,32.02201134]
[1736523669989,32.02201134,188.24,188.06,32.02201134]
[1736523670287,2.6579,188.17,188.06,34.68131134]
[1736523670482,32.02201134,188.27,188.09,32.02201134]
[1736523670675,7.22,188.23,188.09,32.02201134]
[1736523671082,7.22,188.23,188.06,32.02201134]
[1736523671284,32.02201134,188.18,188.03,5.9692648]
[1736523671481,2.6586,188.12,188.03,5.9692648]
[1736523671799,32.02201134,188.15,188.03,5.9692648]
[1736523671985,7.24,188.14,188.03,5.9692648]
[1736523672989,2.6589,188.1,188.03,5.9692648]
[1736523673377,32.02201134,188.12,188.03,5.9692648]
[1736523673580,2.6596,188.05,188.03,5.9692648]
[1736523673790,32.02201134,188.09,188.03,5.9692648]
[1736523673981,2.6594,188.06,188.03,5.9692648]
[1736523674178,32.02201134,188.09,187.91,32.02201134]
[1736523674782,32.02201134,188.09,187.92,2.6613]
[1736523675098,32.02201134,188.09,187.91,32.02201134]
[1736523675395,3.2508,188.13,188.05,32.02201134]
[1736523675794,3.2508,188.13,188.02,32.02201134]
[1736523676286,3.2508,188.13,188.05,32.02201134]
[1736523676482,3.2508,188.13,188.02,32.02201134]
[1736523676704,3.2508,188.13,187.99,32.02201134]
[1736523677187,3.2508,188.13,188.02,32.02201134]
[1736523677489,32.02201134,188.19,188.02,32.02201134]
[1736523677688,2.6586,188.12,188.03,2.6597]
[1736523677891,32.02201134,188.19,188.05,32.02201134]
[1736523678308,10.2847,188.21,188.06,2.6593]
[1736523678495,3.0647,188.21,188.08,32.02201134]
[1736523678886,2.6583,188.14,188.05,32.02201134]
[1736523679287,32.02201134,188.16,188.01,32.02201134]
[1736523679988,32.02201134,188.19,188.01,32.02201134]
[1736523680189,10.2247,188.21,188.07,32.02201134]
[1736523680395,0.86137135,188.2,188.04,32.02201134]
[1736523680593,2.6589,188.1,188.01,32.02201134]
[1736523680795,32.02201134,188.19,188.04,32.02201134]
[1736523680989,10.2247,188.21,188.04,32.02201134]
[1736523681294,3.0647,188.21,188.1,32.02201134]
[1736523681893,7.14,188.27,188.13,32.02201134]
[1736523682286,0.86108191,188.26,188.1,32.02201134]
[1736523682487,32.02201134,188.25,188.1,32.02201134]
[1736523682692,32.02201134,188.22,188.07,32.02201134]
[1736523682894,32.02201134,188.22,188.04,32.02201134]
[1736523683097,32.02201134,188.19,188.04,32.02201134]
[1736523683594,32.02201134,188.19,188.04,34.68161134]
[1736523683791,32.02201134,188.19,188.04,32.02201134]
[1736523684184,2.6585,188.12,188.04,32.02201134]
[1736523684389,32.02201134,188.16,188.01,32.02201134]
[1736523684599,32.02201134,188.13,187.98,32.02201134]
[1736523684802,2.6598,188.03,187.97,5.97327842]
[1736523685002,32.02201134,188.16,187.98,32.02201134]
[1736523685297,32.02201134,188.16,187.97,5.97327842]
[1736523685298,7.16,188.17,188.04,32.02201134]
[1736523685503,33.52951134,188.19,188.1,32.02201134]
[1736523685504,1.5075,188.19,188.1,32.02201134]
[1736523685697,7.16,188.27,188.1,32.02201134]
[1736523686093,0.86122897,188.26,188.13,32.02201134]
[1736523686394,0.86122897,188.26,188.1,32.02201134]
[1736523686697,32.02201134,188.25,188.1,32.02201134]
[1736523686991,2.6581,188.15,188.07,34.68121134]
[1736523687192,7.14,188.22,188.07,32.02201134]
[1736523688107,39.16201134,188.22,188.07,32.02201134]
[1736523688300,1.5775,188.21,188.04,32.02201134]
[1736523688601,1.5775,188.21,187.99,7.16]
[1736523688602,2.6581,188.15,188.07,34.68121134]
[1736523688803,1.5775,188.21,188.04,32.02201134]
[1736523688999,3.1398,188.2,188.04,32.02201134]
[1736523689194,2.6579,188.17,188.09,2.6589]
[1736523689394,3.1398,188.2,188.07,32.02201134]
[1736523689597,1.533,188.2,188.1,32.02201134]
[1736523689797,2.6574,188.2,188.12,2.6584]
[1736523689998,8.683,188.27,188.1,32.02201134]
[1736523690198,0.86111249,188.26,188.1,32.02201134]
[1736523690397,2.6571,188.23,188.15,2.6581]
[1736523690701,2.6571,188.23,188.13,32.02201134]
[1736523690702,8.683,188.27,188.13,32.02201134]
[1736523690903,2.6574,188.2,188.13,34.68021134]
[1736523691204,1.543,188.27,188.1,32.02201134]
[1736523691700,2.6577,188.18,188.1,32.02201134]
[1736523692207,2.6578,188.17,188.11,2.6586]
[1736523692408,32.02201134,188.25,188.1,32.02201134]
[1736523692603,32.02201134,188.25,188.08,29.54586524]
[1736523692905,1.543,188.27,188.08,29.54586524]
[1736523692906,32.02201134,188.22,188.08,29.54586524]
[1736523693407,2.6585,188.12,188.08,29.54586524]
[1736523693803,2.658,188.16,188.08,32.20486524]
[1736523694001,7.12,188.19,188.07,32.02201134]
[1736523694313,7.12,188.19,188.1,32.02201134]
[1736523695001,7.12,188.19,188.09,29.54586524]
[1736523695604,2.6579,188.16,188.09,32.20476524]
[1736523695902,2.6579,188.16,188.11,29.54586524]
[1736523696100,7.12,188.19,188.11,29.54586524]
[1736523696504,39.14201134,188.19,188.11,29.54586524]
[1736523696703,2.6585,188.12,188.11,13.10486524]
[1736523696913,32.02201134,188.16,188.1,95.12451019]
[1736523697124,1.6315,188.15,188.09,7.28298876]
[1736523697301,32.02201134,188.13,188.07,59.09173049]
[1736523697710,2.6591,188.08,188.07,59.09173049]
[1736523698106,32.02201134,188.13,188.02,59.09173049]
[1736523698304,1.6315,188.15,188.02,59.09173049]
[1736523699112,1.6315,188.15,188.04,32.02201134]
[1736523699311,7.12,188.19,188.04,32.02201134]
[1736523699514,1.5231,188.2,188.11,2.6586]
[1736523699913,1.5231,188.2,188.07,32.02201134]
[1736523700610,1.5231,188.2,188.1,32.02201134]
[1736523700811,7.04,188.22,188.13,32.02201134]
[1736523701011,1.6238,188.27,188.13,32.02201134]
[1736523701316,0.86110952,188.26,188.1,32.02201134]
[1736523701520,32.02201134,188.25,188.1,32.02201134]
[1736523701715,7.02,188.24,188.13,2.6582]
[1736523702016,32.02201134,188.25,188.1,32.02201134]
[1736523702017,1.6238,188.27,188.1,32.02201134]
[1736523702328,0.86108255,188.26,188.19,32.02201134]
[1736523702521,0.86108255,188.26,188.22,32.02201134]
[1736523702714,86.07501936,188.36,188.22,32.02201134]
[1736523702929,86.07501936,188.36,188.27,2.6563]
[1736523703115,86.07501936,188.36,188.25,32.02201134]
[1736523703319,32.02201134,188.35,188.19,32.02201134]
[1736523703710,32.02201134,188.32,188.16,32.02201134]
[1736523703912,32.02201134,188.29,188.14,59.09173049]
[1736523704110,39.02201134,188.29,188.14,59.09173049]
[1736523704333,7.0,188.29,188.16,32.02201134]
[1736523704517,7.0,188.29,188.19,32.02201134]
[1736523705010,7.0,188.29,188.16,32.02201134]
[1736523705216,7.0,188.29,188.13,32.02201134]
[1736523705522,7.0,188.29,188.17,2.6577]
[1736523705725,32.02201134,188.28,188.13,32.02201134]
[1736523705919,32.02201134,188.28,188.1,32.02201134]
[1736523706114,2.6568,188.24,188.14,32.02201134]
[1736523706327,7.0,188.29,188.14,32.02201134]
[1736523706714,7.0,188.29,188.17,32.02201134]
[1736523706917,39.00201134,188.34,188.2,32.02201134]
[1736523707119,2.6555,188.34,188.27,2.6564]
[1736523707312,1.5505,188.36,188.23,32.02201134]
[1736523707618,1.06174019,188.37,188.23,32.02201134]
[1736523707619,2.6554,188.35,188.23,32.02201134]
[1736523707918,32.02201134,188.31,188.16,1.534]
[1736523708115,39.02201134,188.34,188.18,32.02201134]
[1736523708914,7.0,188.34,188.21,32.02201134]
[1736523709318,39.02201134,188.34,188.18,32.02201134]
[1736523709517,32.02201134,188.28,188.12,32.02201134]
[1736523709717,32.02201134,188.28,188.09,32.02201134]
[1736523709915,32.02201134,188.28,188.12,32.02201134]
[1736523710318,32.02201134,188.31,188.15,32.02201134]
[1736523710720,32.02201134,188.31,188.1,32.02201134]
[1736523710923,32.02201134,188.28,188.1,32.02201134]
[1736523711318,32.02201134,188.16,187.93,5.3222]
[1736523711525,32.02201134,188.13,187.95,32.02201134]
[1736523711713,32.02201134,188.13,188.04,2.6596]
[1736523711714,2.6588,188.11,188.04,2.6596]
[1736523711919,32.02201134,188.1,187.97,5.97327842]
[1736523712313,2.6591,188.08,188.01,2.66]
[1736523712615,3.2096,188.18,188.0,32.02201134]
[1736523712616,32.02201134,188.16,188.0,32.02201134]
[1736523712826,32.02201134,188.16,188.06,2.6592]
[1736523712827,2.6584,188.13,188.06,2.6592]
[1736523713019,2.6584,188.13,188.01,1.6133]
[1736523713020,32.02201134,188.16,188.01,1.6133]
[1736523713323,2.6587,188.11,188.06,2.6594]
[1736523713620,32.02201134,188.16,188.01,1.6133]
[1736523714028,2.6581,188.15,188.09,2.6588]
[1736523714232,32.02201134,188.16,188.01,1.6133]
[1736523714520,7.02,188.35,188.14,32.02201134]
[1736523714727,32.02201134,188.3,188.14,32.02201134]
[1736523714928,33.64381134,188.27,188.11,32.02201134]
[1736523715830,32.02201134,188.24,188.08,32.02201134]
[1736523716230,2.6578,188.17,188.12,2.6585]
[1736523716523,32.02201134,188.24,188.12,2.6585]
[1736523716733,32.02201134,188.24,188.08,32.02201134]
[1736523716918,1.6567,188.26,188.11,32.02201134]
[1736523717624,2.6574,188.21,188.15,2.658]
[1736523718025,2.6574,188.21,188.11,32.02201134]
[1736523718332,2.6571,188.23,188.11,32.02201134]
[1736523718525,1.6567,188.26,188.11,32.02201134]
[1736523718730,32.02201134,188.24,188.08,32.02201134]
[1736523719641,32.02201134,188.21,188.05,32.02201134]
[1736523720329,32.02201134,188.21,188.09,2.6589]
[1736523720528,1.5424,188.2,188.09,2.6589]
[1736523720735,2.6583,188.14,188.09,2.6589]
[1736523721125,1.5424,188.2,188.02,114.98201134]
[1736523721126,2.659,188.09,188.02,82.96]
[1736523721432,32.02201134,188.15,188.02,82.96]
[1736523721626,2.6591,188.08,188.04,2.6595]
[1736523721838,32.02201134,188.12,187.97,5.97327842]
[1736523722030,6.96,188.18,187.97,5.97327842]
[1736523722031,6.96,188.18,187.99,32.02201134]
[1736523722223,32.02201134,188.16,187.99,32.02201134]
[1736523722528,6.96,188.18,187.97,5.97327842]
[1736523722529,32.02201134,188.13,187.97,5.97327842]
[1736523722723,32.02201134,188.1,187.97,5.97327842]
[1736523722932,1.6383,188.12,187.97,5.97327842]
[1736523723223,1.6383,188.12,187.99,32.02201134]
[1736523723431,32.02201134,188.1,187.97,5.97327842]
[1736523723834,2.6599,188.05,187.99,2.6606]
[1736523724021,32.02201134,188.07,187.97,5.97327842]
[1736523724434,6.94,188.08,187.97,5.97327842]
[1736523724930,9.5994,188.08,188.02,2.6601]
[1736523725128,6.94,188.08,187.97,5.97327842]
[1736523725535,6.94,188.08,187.98,2.6607]
[1736523725832,32.02201134,188.07,187.97,5.97327842]
[1736523726039,2.6607,187.98,187.97,5.97327842]
[1736523726737,32.02201134,188.01,187.86,1.5248]
[1736523726938,32.02201134,187.98,187.83,32.02201134]
[1736523727128,2.6616,187.92,187.8,32.02201134]
[1736523727340,32.02201134,187.95,187.8,32.02201134]
[1736523727729,1.6167,187.97,187.8,32.02201134]
[1736523727932,1.6167,187.97,187.83,32.02201134]
[1736523728128,2.6616,187.93,187.85,2.6625]
[1736523728332,32.02201134,187.95,187.8,32.02201134]
[1736523728740,32.02201134,187.95,187.83,2.6629]
[1736523728935,32.02201134,187.95,187.8,32.02201134]
[1736523729135,32.02201134,187.91,187.77,33.54681134]
[1736523729337,2.6626,187.85,187.78,2.6635]
[1736523729630,32.02201134,187.88,187.71,32.02201134]
[1736523729838,2.663,187.83,187.71,32.02201134]
[1736523730143,33.52771134,187.88,187.71,32.02201134]
[1736523730329,32.02201134,187.95,187.77,32.02201134]
[1736523730571,1.5057,187.96,187.83,32.02201134]
[1736523730734,2.6618,187.91,187.85,2.6626]
[1736523730943,38.92201134,187.96,187.8,32.02201134]
[1736523731129,6.9,187.96,187.76,6.9]
[1736523731331,2.6617,187.91,187.84,2.6627]
[1736523731540,6.9,187.96,187.82,32.02201134]
[1736523731743,6.88,188.0,187.82,32.02201134]
[1736523731960,32.02201134,187.94,187.79,32.02201134]
[1736523732136,32.02201134,188.01,187.77,1.5475]
[1736523732461,2.661,187.97,187.9,2.6617]
[1736523732635,32.02201134,188.01,187.85,32.02201134]
[1736523732836,32.02201134,188.01,187.82,32.02201134]
[1736523733042,32.02201134,187.98,187.82,32.02201134]
[1736523733445,2.6614,187.94,187.85,2.6624]
[1736523733640,2.6614,187.94,187.82,32.02201134]
[1736523733834,32.02201134,187.98,187.82,32.02201134]
[1736523734142,2.6617,187.92,187.82,32.02201134]
[1736523734349,32.02201134,187.95,187.79,32.02201134]
[1736523734534,2.6623,187.88,187.81,2.6632]
[1736523734732,32.02201134,187.92,187.78,1.4881]
[1736523734935,32.02201134,187.89,187.73,32.02201134]
[1736523736037,32.02201134,187.86,187.7,32.02201134]
[1736523736235,2.6639,187.76,187.71,2.6646]
[1736523736444,32.02201134,187.83,187.67,1.4862]
[1736523736745,1.5175,187.85,187.69,32.02201134]
[1736523736964,32.02201134,187.8,187.67,3.0754]
[1736523737160,32.02201134,187.8,187.66,1.6083]
[1736523737443,32.02201134,187.77,187.6,32.02201134]
[1736523737643,1.5622,187.76,187.6,32.02201134]
[1736523737847,2.6644,187.72,187.66,2.6652]
[1736523738145,1.5622,187.76,187.6,32.02201134]
[1736523738441,2.6646,187.71,187.65,2.6654]
[1736523738641,32.02201134,187.74,187.58,3.0228]
[1736523738839,32.02201134,187.71,187.58,3.0228]
[1736523739035,32.02201134,187.71,187.57,5.98354077]
[1736523739240,32.02201134,187.68,187.57,5.98354077]
[1736523739450,6.84,187.67,187.57,5.98354077]
[1736523739836,2.6656,187.64,187.57,5.98354077]
[1736523740044,32.02201134,187.71,187.57,5.98354077]
[1736523740440,38.84201134,187.74,187.57,38.00555211]
[1736523740640,32.02201134,187.74,187.6,32.02201134]
[1736523740840,32.02201134,187.74,187.58,1.4862]
[1736523741538,1.6084,187.75,187.63,32.02201134]
[1736523741944,32.02201134,188.01,187.58,1.4862]
[1736523741945,34.68541134,187.8,187.73,2.6642]
[1736523742146,32.02201134,187.83,187.66,32.02201134]
[1736523742741,32.02201134,187.8,187.66,32.02201134]
[1736523743039,2.6633,187.81,187.71,2.6646]
[1736523743235,32.02201134,187.83,187.66,32.02201134]
[1736523744146,2.6634,187.79,187.66,2.6652]
[1736523744445,2.6634,187.79,187.66,32.02201134]
[1736523744636,2.664,187.75,187.68,2.6649]
[1736523744846,32.02201134,187.8,187.63,38.84201134]
[1736523745442,32.02201134,187.8,187.63,32.02201134]
[1736523745747,32.02201134,187.8,187.6,8.4552]
[1736523745748,32.02201134,187.8,187.66,32.02201134]
[1736523745958,32.02201134,187.83,187.66,32.02201134]
[1736523746247,32.02201134,187.8,187.66,32.02201134]
[1736523746446,32.02201134,187.77,187.63,32.02201134]
[1736523746745,32.02201134,187.74,187.6,1.6352]
[1736523746944,3.186,187.76,187.6,1.6352]
[1736523747145,2.6643,187.73,187.67,2.665]
[1736523747650,2.6646,187.71,187.66,2.6652]
[1736523747850,32.02201134,187.74,187.6,1.6352]
[1736523748153,2.6647,187.7,187.65,2.6654]
[1736523748340,32.02201134,187.74,187.55,6.82]
[1736523748643,4.7128,187.76,187.55,6.82]
[1736523748852,4.7128,187.76,187.61,32.02201134]
[1736523749245,2.6649,187.7,187.64,2.6655]